bitfinex/quotes_ETHUSD_20250925
["timestamp","ask_amount","ask_price","bid_price","bid_amount"]
[1758836631442,0.001,3896.4,3896.3,8.17331584]
[1758836634119,0.001,3896.4,3896.3,7.73271584]
[1758836634427,0.001,3896.4,3896.3,8.17331584]
[1758836634627,0.001,3896.4,3896.3,7.73271584]
[1758836634822,0.001,3896.4,3896.3,3.12491584]
[1758836635047,0.001,3896.4,3896.3,2.56653748]
[1758836635225,0.4559,3896.4,3896.3,2.56653748]
[1758836635429,0.001,3896.4,3896.3,2.56653748]
[1758836636142,0.001,3896.4,3896.3,2.56853748]
[1758836641991,0.001,3896.4,3896.3,0.002]
[1758836642145,0.001,3896.4,3896.3,2.56853748]
[1758836643534,0.2383,3896.4,3896.3,2.56853748]
[1758836644034,0.2383,3896.4,3896.3,0.002]
[1758836644035,0.001,3896.4,3896.3,0.002]
[1758836644231,0.001,3896.4,3896.3,2.56853748]
[1758836644468,0.001,3896.4,3896.3,0.002]
[1758836645670,0.001,3896.4,3896.3,2.56853748]
[1758836649283,4.37,3896.4,3896.3,2.56853748]
[1758836649969,5.0648,3896.4,3896.3,0.002]
[1758836650608,4.6073,3896.4,3896.3,0.002]
[1758836650971,4.37,3896.4,3896.3,0.002]
[1758836652071,5.0648,3896.4,3896.3,0.002]
[1758836652316,6.221,3896.4,3896.3,0.002]
[1758836655114,8.78747161,3896.4,3896.3,0.002]
[1758836655471,12.57947161,3896.4,3896.3,0.002]
[1758836655676,12.68241621,3896.4,3896.3,0.002]
[1758836656897,8.31341621,3896.4,3896.3,0.002]
[1758836657098,14.81941621,3896.4,3896.3,0.002]
[1758836660103,15.2219587,3896.4,3896.3,0.002]
[1758836664833,5.45468709,3896.4,3896.3,0.002]
[1758836665029,5.2429446,3896.4,3896.3,0.2304]
[1758836665232,0.001,3896.4,3896.3,3.24433748]
[1758836665398,4.367,3896.4,3896.3,3.24433748]
[1758836665729,4.367,3896.4,3896.3,3.82562518]
[1758836666806,0.001,3896.4,3896.3,3.82562518]
[1758836667127,4.367,3896.4,3896.3,3.82562518]
[1758836670628,0.02,3897.9,3896.4,0.4119854]
[1758836670930,0.02,3897.9,3897.8,2.69354979]
[1758836671140,1e-08,3897.9,3897.8,3.36934979]
[1758836671329,1e-08,3897.9,3897.8,3.95063749]
[1758836671532,1e-08,3897.9,3897.8,4.05349077]
[1758836673340,0.00100001,3897.9,3897.8,4.05349077]
[1758836684342,0.00100001,3897.9,3897.8,4.07914626]
[1758836684556,0.00100001,3897.9,3897.8,7.87114626]
[1758836684882,0.00100001,3897.9,3897.8,7.84549077]
[1758836685662,0.00100001,3897.9,3897.8,9.38949077]
[1758836685867,0.00100001,3897.9,3897.8,16.07149077]
[1758836686069,0.02,3898.9,3898.8,2.56489176]
[1758836686314,0.02,3898.9,3898.8,2.97687716]
[1758836686507,0.02,3898.9,3898.8,7.56627716]
[1758836686805,0.02,3898.9,3898.8,8.1164892]
[1758836687336,1e-08,3898.9,3898.8,8.9084892]
[1758836688310,1e-08,3898.9,3898.8,11.9084892]
[1758836690075,1e-08,3898.9,3898.8,13.4544892]
[1758836691408,1e-08,3899.5,3899.4,2.5644971]
[1758836691576,1e-08,3899.5,3899.4,14.35046037]
[1758836691779,1e-08,3899.5,3899.4,15.05016037]
[1758836692392,1e-08,3899.5,3899.4,15.84216037]
[1758836692883,1e-08,3899.5,3899.4,18.84216037]
[1758836694214,1e-08,3899.5,3899.4,12.31794681]
[1758836694621,0.45720001,3899.5,3899.4,10.17994681]
[1758836694790,0.70500001,3899.5,3899.4,10.17994681]
[1758836694994,0.24780001,3899.5,3899.4,10.17994681]
[1758836695299,1e-08,3899.5,3899.4,10.17994681]
[1758836696018,0.70500001,3899.5,3899.4,0.128]
[1758836696325,0.70500001,3899.5,3898.8,2.56687143]
[1758836696484,0.705,3899.4,3898.9,2.56482075]
[1758836696679,0.705,3899.3,3898.9,2.56482075]
[1758836697003,0.705,3899.2,3898.9,2.56482075]
[1758836697192,1e-08,3899.5,3899.0,2.56474062]
[1758836697512,0.705,3899.1,3899.0,2.56474062]
[1758836698794,0.705,3899.1,3898.8,0.002]
[1758836699114,0.705,3899.0,3898.9,2.56477591]
[1758836699286,1e-08,3899.5,3898.9,2.56477591]
[1758836699621,0.705,3899.0,3898.9,2.56477591]
[1758836706828,0.128,3899.4,3898.9,2.56477591]
[1758836707024,0.2417,3899.0,3898.9,2.56477591]
[1758836707240,0.6912,3899.0,3898.9,2.56477591]
[1758836707426,0.128,3899.4,3898.9,2.56477591]
[1758836707743,0.128,3899.4,3899.1,2.56464445]
[1758836707939,0.128,3899.4,3899.3,2.56456287]
[1758836708137,1e-08,3899.5,3899.4,2.5644971]
[1758836708735,1e-08,3899.5,3899.4,3.09277401]
[1758836708940,1e-08,3899.5,3899.4,3.22077401]
[1758836709574,1e-08,3899.5,3899.4,3.93967401]
[1758836709938,1e-08,3899.5,3899.4,8.29767401]
[1758836714541,1e-08,3899.5,3899.4,13.33018757]
[1758836715643,1e-08,3899.5,3899.4,14.12218757]
[1758836719785,1e-08,3899.5,3899.4,13.40328757]
[1758836720087,1e-08,3899.5,3899.4,14.12468757]
[1758836720460,1e-08,3899.5,3899.4,14.22747636]
[1758836722547,0.6899,3901.1,3900.8,2.5635767]
[1758836722979,0.2654,3900.9,3900.8,2.71721246]
[1758836723349,0.02,3900.9,3900.8,2.71721246]
[1758836723798,0.4635,3900.9,3900.8,2.71721246]
[1758836724116,0.7089,3900.9,3900.8,2.71721246]
[1758836724411,0.02,3900.9,3900.8,2.6915767]
[1758836724777,0.02,3900.9,3900.8,2.9388767]
[1758836725313,0.02,3902.9,3902.6,2.5623943]
[1758836725526,0.02,3902.9,3902.8,5.56226299]
[1758836725810,0.02,3902.9,3902.8,2.56226299]
[1758836726006,0.02,3902.9,3901.5,0.792]
[1758836726213,2.136,3902.8,3901.9,0.6889]
[1758836726376,9.07531963,3902.8,3901.8,2.56290205]
[1758836726576,4.23134166,3902.7,3901.8,2.56290205]
[1758836726775,2.56239837,3902.6,3901.7,2.56298239]
[1758836727296,1.66899782,3902.7,3901.8,2.56291939]
[1758836727517,0.6889,3902.5,3901.9,2.5628338]
[1758836727707,0.001,3901.7,3901.4,3.0]
[1758836727914,0.4445,3901.7,3901.6,2.56305105]
[1758836728075,0.001,3901.7,3901.6,2.56305105]
[1758836729212,0.6899,3901.7,3901.6,2.56305105]
[1758836730205,0.001,3901.7,3901.6,2.56305105]
[1758836730918,0.001,3901.7,3900.4,2.56383]
[1758836730919,0.6899,3901.7,3900.4,2.56383]
[1758836731214,2.56338685,3901.1,3900.1,0.02]
[1758836731422,2.56356587,3900.9,3900.1,0.02]
[1758836731600,2.56364541,3900.7,3900.1,0.02]
[1758836732119,0.4435,3900.6,3900.1,0.02]
[1758836732421,0.6889,3900.6,3900.1,0.02]
[1758836732606,0.6889,3900.5,3900.1,0.02]
[1758836732982,0.2454,3900.4,3900.1,0.02]
[1758836733430,0.6889,3900.3,3900.1,0.02]
[1758836734015,0.4435,3900.2,3900.1,0.02]
[1758836734408,0.4435,3900.2,3900.1,2.58403681]
[1758836734610,0.4435,3900.2,3900.1,0.02]
[1758836736527,0.4435,3900.2,3900.1,2.58403681]
[1758836736727,0.4435,3900.2,3900.1,0.02]
[1758836738721,0.4435,3900.2,3900.1,2.58403681]
[1758836739232,0.2454,3900.3,3900.1,2.58403681]
[1758836739535,0.6889,3900.3,3900.1,2.58403681]
[1758836739738,0.6889,3900.3,3900.1,0.02]
[1758836739893,0.2454,3900.2,3900.1,0.02]
[1758836740441,0.6889,3900.2,3900.1,0.02]
[1758836740792,5.38887107,3900.2,3900.1,0.02]
[1758836740988,10.56014449,3900.2,3900.1,0.02]
[1758836741435,13.56014449,3900.2,3900.1,0.02]
[1758836741638,19.59479927,3900.2,3900.1,0.02]
[1758836741804,20.38679927,3900.2,3900.1,0.02]
[1758836744135,20.38679927,3900.2,3899.1,0.02]
[1758836744136,3.35643133,3899.5,3899.1,0.02]
[1758836744304,8.32350944,3899.5,3899.1,0.02]
[1758836744627,12.01240944,3899.5,3899.1,0.02]
[1758836745998,12.01240944,3899.5,3899.3,0.002]
[1758836746197,6.4844971,3899.4,3899.3,0.002]
[1758836746421,8.6214971,3899.4,3899.3,0.002]
[1758836746620,9.3103971,3899.4,3899.3,0.002]
[1758836746944,12.23082791,3899.4,3899.3,0.002]
[1758836747123,19.42082791,3899.4,3899.3,0.002]
[1758836747557,25.45548269,3899.4,3899.3,0.002]
[1758836748622,17.10226856,3899.4,3899.3,0.002]
[1758836748820,0.40226856,3899.4,3899.3,0.6821]
[1758836749024,2.137,3899.9,3899.4,2.56449032]
[1758836749328,7.377,3899.8,3899.7,2.56429882]
[1758836749539,7.377,3899.8,3899.7,3.24439882]
[1758836749940,7.377,3899.8,3899.7,0.6801]
[1758836750826,7.377,3899.8,3899.7,3.24439981]
[1758836751027,7.377,3899.8,3899.7,0.6801]
[1758836751658,4.377,3899.8,3899.7,3.96609455]
[1758836752154,2.265,3900.4,3900.1,2.56400184]
[1758836752357,3.0,3900.2,3900.1,2.80470184]
[1758836752960,3.0,3900.2,3900.1,3.24410184]
[1758836753130,0.128,3900.4,3900.1,2.56400184]
[1758836753327,3.0,3900.2,3900.1,2.56400184]
[1758836753537,3.0,3900.2,3900.1,3.00340184]
[1758836753847,3.0,3900.2,3900.1,3.24410184]
[1758836754052,3.0,3900.2,3900.1,2.80470184]
[1758836754245,3.0,3900.2,3900.1,0.2407]
[1758836754875,3.0,3900.2,3900.1,0.6801]
[1758836755379,3.0,3900.2,3900.1,3.24413681]
[1758836758741,2.137,3900.7,3900.3,2.56390534]
[1758836758946,3.0,3900.5,3900.3,3.00330534]
[1758836759178,3.0,3900.5,3900.3,0.4394]
[1758836759386,3.0,3900.5,3900.2,2.56396587]
[1758836759679,3.0,3900.3,3900.2,3.00336587]
[1758836760183,3.0,3900.3,3900.2,3.24406587]
[1758836760378,3.0,3900.4,3900.3,2.56390534]
[1758836760541,2.137,3900.9,3900.3,0.6801]
[1758836760746,4.371,3900.8,3900.7,2.56363282]
[1758836760946,7.371,3900.8,3900.7,2.56363282]
[1758836761183,7.371,3900.8,3900.7,3.00303282]
[1758836762778,7.372,3900.8,3900.7,3.00303282]
[1758836763272,7.372,3900.8,3900.7,0.4394]
[1758836763473,3.001,3900.8,3900.6,2.69168193]
[1758836763672,7.368,3900.7,3900.6,3.32476029]
[1758836763873,7.368,3900.7,3900.6,2.92518193]
[1758836764185,7.368,3900.7,3900.6,3.37308193]
[1758836766591,4.368,3900.7,3900.6,3.24508193]
[1758836767585,4.368,3900.7,3900.6,2.79718193]
[1758836768274,4.368,3900.7,3900.6,3.24508193]
[1758836769022,0.001,3900.8,3900.6,3.24508193]
[1758836769023,0.001,3900.8,3900.7,2.56364242]
[1758836769319,4.363,3900.8,3900.7,3.24504242]
[1758836770618,0.001,3900.8,3900.7,3.24504242]
[1758836770824,0.001,3900.8,3900.7,3.27067884]
[1758836770990,0.001,3900.8,3900.7,3.24504242]
[1758836771193,0.001,3900.8,3900.7,3.65486055]
[1758836771932,0.001,3900.8,3900.7,8.04349697]
[1758836772129,0.001,3900.8,3900.7,8.01786055]
[1758836776523,0.001,3900.8,3900.7,7.33646055]
[1758836776754,0.001,3900.8,3900.7,2.69164242]
[1758836776889,0.6968,3900.8,3900.7,2.69164242]
[1758836777089,0.6968,3900.8,3900.7,0.128]
[1758836777521,0.6968,3900.8,3900.7,2.69164242]
[1758836779500,0.6942,3900.8,3900.7,2.69164242]
[1758836780397,0.6942,3900.8,3900.3,2.56389118]
[1758836780596,0.001,3900.8,3900.6,2.56370682]
[1758836780828,0.6796,3900.7,3900.6,2.56370682]
[1758836781639,0.2343,3900.7,3900.6,2.56370682]
[1758836782129,0.001,3900.8,3900.6,2.56370682]
[1758836782445,0.4463,3900.8,3900.6,2.56370682]
[1758836784002,7.6363,3900.8,3900.6,2.56370682]
[1758836784844,7.6363,3900.8,3900.7,2.56364242]
[1758836785842,7.191,3900.8,3900.7,2.56364242]
[1758836798128,7.191,3900.8,3900.5,2.93676883]
[1758836798460,4.357,3900.7,3900.5,3.39406883]
[1758836800383,4.357,3900.7,3900.5,2.93676883]
[1758836800759,4.357,3900.7,3900.5,2.69176883]
[1758836801290,4.357,3900.7,3900.5,0.128]
[1758836801592,4.357,3900.7,3900.5,2.69177091]
[1758836804255,4.357,3900.7,3900.5,0.128]
[1758836804579,0.6796,3900.6,3899.5,0.245]
[1758836804889,5.1558815,3900.3,3899.6,0.128]
[1758836805092,0.128,3900.0,3899.4,0.002]
[1758836805392,4.356,3899.9,3899.4,0.002]
[1758836805570,5.0356,3899.9,3899.4,0.002]
[1758836805895,0.2343,3899.8,3899.4,0.002]
[1758836806071,4.356,3899.7,3899.4,0.002]
[1758836806390,2.69210726,3900.0,3899.4,0.002]
[1758836806602,4.356,3899.9,3899.4,0.02764497]
[1758836806807,4.356,3899.9,3899.4,0.002]
[1758836807102,0.4453,3899.8,3899.4,0.002]
[1758836807271,4.5903,3899.9,3899.4,0.002]
[1758836807476,4.356,3899.9,3899.5,2.56442432]
[1758836808379,4.356,3899.9,3899.4,0.62599913]
[1758836808712,4.356,3899.9,3899.4,3.4075333]
[1758836810982,4.356,3899.9,3899.4,3.1648333]
[1758836812517,4.356,3899.9,3899.6,2.56433492]
[1758836812676,4.356,3899.9,3899.7,0.128]
[1758836813080,0.128,3900.3,3899.7,0.128]
[1758836813410,4.356,3900.2,3899.7,0.128]
[1758836814380,0.001,3900.0,3899.7,0.128]
[1758836814581,4.356,3899.9,3899.7,0.128]
[1758836818488,0.001,3900.0,3899.7,0.128]
[1758836818689,4.356,3899.9,3899.7,0.128]
[1758836820320,4.356,3899.9,3899.7,2.93498933]
[1758836820821,4.356,3899.9,3899.7,0.128]
[1758836821316,5.4591815,3899.8,3899.4,0.002]
[1758836821486,2.56443133,3899.5,3899.4,0.002]
[1758836821686,12.05743133,3899.5,3899.4,0.002]
[1758836822010,12.72913133,3899.5,3899.4,0.002]
[1758836822215,14.76126382,3899.5,3899.4,0.002]
[1758836823108,11.52513249,3899.5,3899.4,0.002]
[1758836823291,9.493,3899.5,3899.4,0.002]
[1758836823492,10.1647,3899.5,3899.4,0.002]
[1758836823821,9.493,3899.5,3899.4,0.002]
[1758836823982,12.84943133,3899.5,3899.4,0.002]
[1758836824314,12.49868977,3899.5,3899.4,0.002]
[1758836824517,15.0631211,3899.5,3899.4,0.002]
[1758836826790,15.8551211,3899.5,3899.4,0.002]
[1758836827003,16.15608842,3899.5,3899.4,0.002]
[1758836827203,16.55832902,3899.5,3899.4,0.002]
[1758836832847,16.55932902,3899.5,3899.4,0.002]
[1758836837126,16.2583617,3899.5,3899.4,0.002]
[1758836837826,10.4052617,3899.5,3899.4,0.002]
[1758836838027,17.08731283,3899.5,3899.4,0.6711]
[1758836838228,0.001,3899.5,3899.4,0.6711]
[1758836838429,4.358,3899.5,3899.4,0.6711]
[1758836838638,7.358,3899.5,3899.4,0.6711]
[1758836840130,4.358,3899.5,3899.4,0.6711]
[1758836845337,4.358,3899.5,3899.4,0.2413]
[1758836845545,4.358,3899.5,3899.4,0.002]
[1758836845546,24.02434297,3899.5,3899.4,0.002]
[1758836845838,24.81634297,3899.5,3899.4,0.002]
[1758836850689,25.21856198,3899.5,3899.4,0.002]
[1758836854652,26.23135159,3899.5,3899.4,0.002]
[1758836858554,18.73338048,3899.5,3899.4,0.002]
[1758836858764,10.191,3899.5,3899.4,0.6711]
[1758836858958,11.547,3899.5,3899.4,0.6711]
[1758836859175,14.547,3899.5,3899.4,0.6711]
[1758836863903,17.11143133,3899.5,3899.4,0.6711]
[1758836864471,14.547,3899.5,3899.4,0.6711]
[1758836865108,14.547,3899.5,3899.4,0.2413]
[1758836865570,17.11143133,3899.5,3899.4,0.2413]
[1758836865773,17.11143133,3899.5,3899.4,0.6711]
[1758836866306,14.675,3899.5,3899.4,0.6711]
[1758836867930,17.23943133,3899.5,3899.4,0.6711]
[1758836868629,14.675,3899.5,3899.4,0.6711]
[1758836869191,0.001,3899.5,3899.4,4.7775971]
[1758836869413,0.001,3899.9,3899.8,2.56423406]
[1758836869613,0.001,3900.3,3899.8,2.5898764]
[1758836869817,0.001,3900.3,3900.2,2.56397107]
[1758836870016,0.001,3900.8,3900.7,2.56364242]
[1758836870240,0.001,3901.2,3901.1,2.56337955]
[1758836870404,0.001,3901.2,3901.1,3.10169756]
[1758836870603,0.001,3901.2,3901.1,3.81039756]
[1758836871135,0.001,3901.2,3901.1,5.32676377]
[1758836871329,0.001,3901.2,3901.1,3.78476377]
[1758836871515,0.976,3901.2,3901.1,0.74788422]
[1758836871721,0.976,3901.2,3901.1,0.2352]
[1758836872293,0.976,3901.2,3900.9,0.2352]
[1758836872508,0.976,3901.2,3901.0,0.2352]
[1758836874737,0.976,3901.2,3900.7,0.2352]
[1758836875563,0.976,3901.2,3900.8,0.2352]
[1758836879272,0.976,3901.2,3900.8,0.3632]
[1758836880284,0.976,3901.2,3900.8,2.92677103]
[1758836881745,0.001,3901.6,3901.2,0.792]
[1758836881946,0.001,3901.6,3901.1,10.14605066]
[1758836881947,0.02,3901.9,3901.8,2.56291967]
[1758836882302,0.13107449,3903.5,3902.8,2.56226299]
[1758836882450,0.036,3903.2,3902.8,2.56226299]
[1758836882646,3.0,3903.2,3902.8,3.27096299]
[1758836882851,3.904,3903.3,3902.8,3.27096299]
[1758836883194,3.0,3903.2,3902.8,3.27096299]
[1758836883396,3.904,3903.3,3902.8,3.27096299]
[1758836883894,3.0,3903.2,3902.8,3.27096299]
[1758836884590,3.904,3903.3,3902.8,3.27096299]
[1758836884749,0.02,3903.9,3902.8,3.27096299]
[1758836884948,3.0,3903.4,3902.8,3.27096299]
[1758836885453,4.352,3903.5,3902.8,3.27096299]
[1758836887180,4.352,3903.5,3902.8,3.29658561]
[1758836887877,4.352,3903.5,3902.8,3.27096299]
[1758836888081,4.352,3903.5,3902.8,3.86736007]
[1758836888646,4.352,3903.5,3902.8,3.15866007]
[1758836888996,0.714,3902.9,3901.5,3.0]
[1758836889207,0.694,3902.8,3902.1,2.5627186]
[1758836889407,0.226,3902.7,3902.1,2.5627186]
[1758836889768,0.226,3902.7,3902.0,2.56277876]
[1758836890109,0.226,3902.7,3902.1,2.56271027]
[1758836890280,0.02,3902.9,3902.1,1.24553575]
[1758836890600,0.02,3902.9,3902.5,2.56245401]
[1758836891003,0.02,3902.9,3902.5,2.79825401]
[1758836891777,0.02,3902.9,3902.6,0.3638]
[1758836894001,0.02,3902.9,3902.6,2.92617654]
[1758836894315,0.02,3902.9,3902.7,0.2358]
[1758836894781,0.02,3902.9,3902.6,0.128]
[1758836894980,0.02,3902.9,3902.7,0.7094]
[1758836895608,0.02,3902.9,3902.7,2.56232622]
[1758836895811,0.02,3902.9,3902.7,2.79812622]
[1758836896112,0.02,3902.9,3902.7,0.2358]
[1758836896298,0.02,3902.9,3902.7,0.26142328]
[1758836896493,0.02,3902.9,3902.7,0.2358]
[1758836897617,0.02,3902.9,3902.8,0.02562262]
[1758836898190,0.02,3902.9,3902.8,2.58788561]
[1758836898387,0.02,3902.9,3902.8,0.02562262]
[1758836898591,0.02,3902.9,3902.7,2.56228335]
[1758836898788,0.02,3902.9,3902.7,2.80218335]
[1758836899500,0.02,3902.9,3902.8,0.70682262]
[1758836899815,0.02,3902.9,3902.8,3.39708561]
[1758836899978,0.02,3902.9,3902.8,3.37146299]
[1758836900778,0.02,3902.9,3902.8,2.93016299]
[1758836901712,0.02,3902.9,3902.8,2.69026299]
[1758836901913,0.021,3902.9,3902.8,2.69026299]
[1758836903221,0.021,3902.9,3902.8,0.128]
[1758836904004,0.021,3902.9,3902.8,2.69026299]
[1758836904491,0.021,3902.9,3902.8,0.128]
[1758836905517,0.021,3902.9,3902.8,2.93016299]
[1758836906117,0.021,3902.9,3902.8,2.69026299]
[1758836907406,0.021,3902.9,3902.8,3.30927113]
[1758836907721,0.021,3902.9,3902.8,5.53247113]
[1758836907930,0.021,3902.9,3902.8,5.50684851]
[1758836908293,0.021,3902.9,3902.8,9.85584851]
[1758836911200,2.68916458,3904.5,3902.8,9.85584851]
[1758836911201,1e-08,3903.9,3902.8,9.85584851]
[1758836911401,1e-08,3903.9,3903.8,2.56160663]
[1758836911752,1e-08,3903.9,3903.8,8.45960663]
[1758836911918,1e-08,3903.9,3903.8,9.14080663]
[1758836913218,1e-08,3903.9,3903.8,12.93280663]
[1758836913420,1e-08,3903.9,3903.8,13.54019215]
[1758836913617,1e-08,3903.9,3903.8,8.37819215]
[1758836913831,1e-08,3903.9,3903.8,12.74919215]
[1758836914232,1e-08,3903.9,3903.8,8.37819215]
[1758836914445,1e-08,3903.9,3903.8,12.74919215]
[1758836914953,1e-08,3903.9,3903.8,12.06799215]
[1758836915250,1e-08,3903.9,3903.8,12.30789215]
[1758836916351,1e-08,3903.9,3903.8,11.99919215]
[1758836916652,1e-08,3903.9,3903.8,17.01496706]
[1758836917054,1e-08,3903.9,3903.8,14.01496706]
[1758836918270,1e-08,3903.9,3903.8,15.55696706]
[1758836918427,1e-08,3903.9,3903.8,18.55696706]
[1758836918823,1e-08,3904.9,3904.8,4.89495062]
[1758836919027,1e-08,3904.9,3904.8,17.27972553]
[1758836919269,1e-08,3904.9,3904.8,17.96092553]
[1758836921346,1e-08,3904.9,3904.8,18.08892553]
[1758836922944,0.007,3907.6,3906.8,2.5596396]
[1758836923147,0.2317,3907.4,3906.8,2.58523599]
[1758836923346,0.007,3907.6,3906.8,2.58523599]
[1758836923547,0.14856746,3907.9,3906.8,2.58523599]
[1758836923746,0.2317,3907.3,3906.8,2.58523599]
[1758836924047,0.4675,3907.2,3906.8,6.95523599]
[1758836924257,0.6992,3907.2,3906.8,6.9296396]
[1758836924950,0.02,3907.9,3906.8,6.9296396]
[1758836925151,0.2317,3907.5,3906.8,6.9296396]
[1758836925461,0.4675,3907.4,3906.8,6.9296396]
[1758836925625,0.02,3907.9,3906.8,2.5596396]
[1758836925826,0.7192,3906.9,3905.7,5.01577491]
[1758836926038,0.6992,3906.8,3905.1,5.01577491]
[1758836926226,0.02,3906.9,3905.5,2.56044177]
[1758836926227,0.6992,3906.7,3905.5,2.56044177]
[1758836926424,2.56001744,3906.3,3905.5,2.56047233]
[1758836926624,1.21118597,3906.2,3905.5,2.56047233]
[1758836926823,0.6992,3906.1,3905.5,2.56047233]
[1758836927358,0.6992,3906.0,3905.5,2.56047233]
[1758836927545,0.6992,3905.9,3905.5,2.56047233]
[1758836927753,0.6992,3905.9,3905.3,2.56060954]
[1758836927754,0.6992,3905.9,3905.6,2.56041671]
[1758836927952,0.51198597,3906.2,3905.6,2.56041671]
[1758836928264,0.6724,3905.8,3905.7,2.56036049]
[1758836932084,0.74948597,3906.2,3905.7,2.56036049]
[1758836932390,0.6724,3906.1,3905.8,2.56029454]
[1758836932688,0.6724,3906.0,3905.8,2.56029454]
[1758836932888,0.6724,3905.9,3905.8,2.56029454]
[1758836933194,0.6724,3905.9,3905.8,0.128]
[1758836934696,0.6724,3905.9,3905.8,2.68829494]
[1758836935958,1.18438597,3906.2,3905.8,2.68829494]
[1758836936160,0.6724,3906.1,3905.8,2.68829494]
[1758836936566,0.51198597,3906.2,3905.9,2.56021285]
[1758836936773,1.18438597,3906.2,3905.9,2.56021285]
[1758836937100,0.2375,3906.1,3905.9,2.56021285]
[1758836937294,0.6724,3906.1,3905.9,2.56021285]
[1758836937483,0.51198597,3906.2,3905.9,2.56021285]
[1758836937685,0.6724,3906.0,3905.9,2.56021285]
[1758836938399,0.6724,3906.0,3905.8,0.128]
[1758836938593,0.6724,3905.9,3905.8,0.128]
[1758836938994,0.51198597,3906.2,3905.8,0.128]
[1758836939199,0.7259486,3906.1,3905.8,0.128]
[1758836939395,0.7259486,3906.1,3905.8,2.6882843]
[1758836939603,0.6724,3906.0,3905.8,2.6882843]
[1758836940090,0.6724,3906.0,3905.9,2.56022939]
[1758836940295,0.7269486,3906.1,3905.9,2.56022939]
[1758836940670,1.3993486,3906.1,3905.9,2.56022939]
[1758836940964,0.001,3906.1,3905.9,2.56022939]
[1758836941169,0.001,3906.1,3906.0,2.68816385]
[1758836942617,0.2385,3906.1,3906.0,2.68816385]
[1758836942973,0.001,3906.1,3906.0,2.68816385]
[1758836951343,0.001,3906.1,3906.0,4.23016385]
[1758836951643,0.001,3906.1,3906.0,2.68816385]
[1758836952674,0.001,3906.1,3906.0,0.128]
[1758836953573,0.001,3906.1,3906.0,2.68816385]
[1758836956566,0.001,3906.1,3906.0,3.36136385]
[1758836956793,0.001,3906.1,3906.0,3.38696548]
[1758836956968,0.001,3906.1,3906.0,2.95386548]
[1758836957184,0.02,3906.9,3906.8,4.1016396]
[1758836957354,0.02,3906.9,3906.8,8.48023599]
[1758836957556,0.02,3906.9,3906.8,9.2550396]
[1758836957751,0.02,3906.9,3906.8,9.65158744]
[1758836957952,0.02,3906.9,3906.8,11.78458744]
[1758836959557,0.02,3906.9,3906.8,12.44938744]
[1758836959755,0.1272,3908.8,3907.8,2.55898459]
[1758836960056,0.8297,3908.8,3907.8,7.03818459]
[1758836960266,0.4679,3908.8,3907.8,6.91098459]
[1758836960466,0.2346,3908.6,3907.8,7.14198459]
[1758836960682,0.7025,3908.6,3907.8,7.14198459]
[1758836960871,0.7025,3908.6,3907.8,7.58098459]
[1758836961760,0.4879,3908.9,3907.8,7.58098459]
[1758836961976,0.7025,3908.7,3907.8,7.58098459]
[1758836962995,0.02,3908.9,3907.8,8.96770985]
[1758836964495,0.02,3908.9,3907.8,8.96448076]
[1758836966469,0.02,3908.9,3907.1,2.133]
[1758836966470,0.4679,3908.6,3907.1,2.133]
[1758836966670,0.7025,3907.8,3907.2,2.55937755]
[1758836966869,0.2346,3907.7,3906.4,2.133]
[1758836967080,0.7025,3907.6,3907.1,2.55938794]
[1758836967282,0.7025,3907.5,3907.0,2.55950081]
[1758836967483,0.32615663,3907.5,3907.0,2.55950081]
[1758836967680,0.7025,3907.4,3907.1,2.55939741]
[1758836967881,0.2346,3907.3,3907.1,2.55939741]
[1758836968109,0.2346,3907.3,3906.9,6.91556377]
[1758836968110,0.7025,3907.2,3906.9,4.355]
[1758836968413,0.7025,3907.2,3906.8,2.55961752]
[1758836968414,0.7025,3907.1,3906.8,2.55961752]
[1758836968587,0.7025,3907.0,3906.8,2.55961752]
[1758836968783,0.7025,3906.9,3906.8,2.55961752]
[1758836970114,0.2346,3907.8,3906.8,4.38059639]
[1758836970293,0.02,3907.9,3907.6,2.55905572]
[1758836970493,0.02,3907.9,3907.7,0.1527905]
[1758836970688,0.02,3907.9,3907.8,2.55898459]
[1758836971120,0.2546,3907.9,3907.8,2.55898459]
[1758836972620,0.02,3907.9,3907.8,2.58457443]
[1758836972925,0.02,3907.9,3907.8,2.71177443]
[1758836974286,0.02,3907.9,3907.8,2.68618459]
[1758836974500,0.02,3907.9,3907.8,2.71177443]
[1758836974702,0.02,3907.9,3907.8,2.68618459]
[1758836979375,0.021,3907.9,3907.8,2.68618459]
[1758836980314,0.021,3907.9,3907.8,2.91718459]
[1758836980651,0.021,3907.9,3907.8,2.94277443]
[1758836981259,0.021,3907.9,3907.8,2.68618459]
[1758836981554,0.021,3907.9,3907.8,2.71177443]
[1758836981758,0.021,3907.9,3907.8,2.91718459]
[1758836982129,0.021,3907.9,3907.8,2.94277443]
[1758836982534,0.021,3907.9,3907.8,2.91718459]
[1758836982854,0.021,3907.9,3907.8,2.94277443]
[1758836983462,0.021,3907.9,3907.8,2.91718459]
[1758836984337,0.021,3907.9,3907.8,3.35618459]
[1758836986467,0.021,3907.9,3907.8,7.70218459]
[1758836988884,0.021,3907.9,3907.8,7.72008459]
[1758836989052,1e-08,3907.9,3907.8,12.92688459]
[1758836992654,1e-08,3907.9,3907.8,18.93280247]
[1758836994682,1e-08,3907.9,3907.8,21.06980247]
[1758836996879,1e-08,3907.9,3907.8,14.58680247]